fUST/lending_fUST_20251026
["ID","MTS","AMOUNT","RATE_DAILY","PERIOD"]
[392381455,1761413438962,-500.0,0.00016964,2]
[392381456,1761413438973,-780.78,0.00016964,2]
[392381457,1761413438982,-500.0,0.00016964,2]
[392381458,1761413438992,-500.0,0.00016964,2]
[392381459,1761413439001,-500.0,0.00016964,2]
[392381460,1761413439011,-500.0,0.00016964,2]
[392381461,1761413439020,-500.0,0.00016964,2]
[392381462,1761413439030,-500.0,0.00016964,2]
[392381463,1761413439040,-500.0,0.00016964,2]
[392381464,1761413439049,-500.0,0.00016964,2]
[392381465,1761413439059,-1408.3,0.00016964,2]
[392381466,1761413439068,-500.0,0.00016964,2]
[392381467,1761413439078,-500.0,0.00016964,2]
[392381468,1761413439087,-929.88,0.00016964,2]
[392381469,1761413439096,-501.39701054,0.00016964,2]
[392381470,1761413439107,-791.76,0.00016964,2]
[392381471,1761413439117,-500.0,0.00016964,2]
[392381472,1761413439126,-500.0,0.00016964,2]
[392381473,1761413439135,-521.88027619,0.00016964,2]
[392381474,1761413439145,-500.0,0.00016964,2]
[392381475,1761413439155,-500.0,0.00016964,2]
[392381476,1761413439165,-500.0,0.00016964,2]
[392381477,1761413439175,-554.64141349,0.00016964,2]
[392381478,1761413439185,-1511.08,0.00016964,2]
[392381479,1761413439194,-500.0,0.00016964,2]
[392381480,1761413439203,-518.98978972,0.00016964,2]
[392381481,1761413439212,-500.0,0.00016964,2]
[392381482,1761413439221,-500.0,0.00016964,2]
[392381483,1761413439231,-500.0,0.00016964,2]
[392381484,1761413439240,-500.0,0.00016964,2]
[392381485,1761413439249,-500.0,0.00016964,2]
[392381486,1761413439259,-3408.19,0.00016964,2]
[392381487,1761413439269,-831.09,0.00016964,2]
[392381488,1761413439278,-500.0,0.00016964,2]
[392381489,1761413439288,-1705.5,0.00016964,2]
[392381490,1761413439298,-500.0,0.00016964,2]
[392381491,1761413439307,-500.0,0.00016964,2]
[392381492,1761413439319,-1030.95,0.00016964,2]
[392381493,1761413439328,-500.0,0.00016964,2]
[392381494,1761413439338,-500.0,0.00016964,2]
[392381495,1761413439348,-500.0,0.00016964,2]
[392381496,1761413439357,-500.0,0.00016964,2]
[392381497,1761413439367,-151.0,0.00016964,2]
[392381498,1761413439376,-500.0,0.00016964,2]
[392381499,1761413439388,-500.0,0.00016964,2]
[392381500,1761413439398,-500.0,0.00016964,2]
[392381501,1761413439407,-500.0,0.00016964,2]
[392381502,1761413439418,-847.93,0.00016964,2]
[392381503,1761413439428,-500.0,0.00016964,2]
[392381504,1761413439437,-500.0,0.00016964,2]
[392381505,1761413439448,-500.0,0.00016964,2]
[392381506,1761413439458,-500.0,0.00016964,2]
[392381507,1761413439468,-500.0,0.00016964,2]
[392381508,1761413439478,-500.0,0.00016964,2]
[392381509,1761413439488,-500.0,0.00016964,2]
[392381510,1761413439498,-500.0,0.00016964,2]
[392381511,1761413439507,-500.0,0.00016964,2]
[392381512,1761413439517,-1190.42,0.00016964,2]
[392381513,1761413439526,-1939.11,0.00016964,2]
[392381514,1761413439537,-500.0,0.00016964,2]
[392381515,1761413439546,-500.0,0.00016964,2]
[392381516,1761413439558,-744.11,0.00016964,2]
[392381517,1761413439566,-500.0,0.00016964,2]
[392381518,1761413439576,-500.0,0.00016964,2]
[392381520,1761413439585,-500.0,0.00016964,2]
[392381522,1761413439594,-500.0,0.00016964,2]
[392381524,1761413439604,-500.0,0.00016964,2]
[392381525,1761413439613,-500.0,0.00016973,2]
[392381526,1761413439621,-500.0,0.00016973,2]
[392381527,1761413439631,-500.0,0.00016973,2]
[392381529,1761413439640,-500.0,0.00016973,2]
[392381530,1761413439649,-500.0,0.00016973,2]
[392381531,1761413439658,-304.35014788,0.00016973,2]
[392381532,1761413439668,-500.0,0.00016973,2]
[392381533,1761413439678,-500.0,0.00016973,2]
[392381534,1761413439687,-158.60839244,0.00016973,2]
[392381536,1761413439696,-160.19666765,0.00016973,2]
[392381537,1761413439707,-500.0,0.00016973,2]
[392381538,1761413439721,-500.0,0.00016973,2]
[392381539,1761413439731,-500.0,0.00016973,2]
[392381540,1761413439741,-500.0,0.00016973,2]
[392381541,1761413439751,-442.42879142,0.00016973,2]
[392381542,1761413439761,-500.69319241,0.00016973,2]
[392381543,1761413439770,-500.0,0.00016973,2]
[392381544,1761413439779,-500.0,0.00016973,2]
[392381545,1761413439788,-500.0,0.00016973,2]
[392381546,1761413439798,-387.3687785,0.00016973,2]
[392381547,1761413439807,-208.53479648,0.00016973,2]
[392381548,1761413439816,-502.20391075,0.00016973,2]
[392381549,1761413439825,-500.0,0.00016973,2]
[392381550,1761413439834,-325.72538093,0.00016973,2]
[392381551,1761413439843,-214.89487884,0.00016973,2]
[392381552,1761413439852,-200.7052135,0.00016973,2]
[392381553,1761413439862,-500.0,0.00016973,2]
[392381554,1761413439872,-157.79230576,0.00016973,2]
[392381555,1761413439881,-500.0,0.00016973,2]
[392381556,1761413439891,-500.0,0.00016973,2]
[392381557,1761413439900,-500.0,0.00016973,2]
[392381559,1761413439910,-502.75265924,0.00016973,2]
[392381561,1761413439919,-500.0,0.00016973,2]
[392381562,1761413439929,-500.0,0.00016973,2]
[392381563,1761413439940,-500.0,0.00016973,2]
[392381564,1761413439949,-46171.11707536,0.0001699,2]
[392381565,1761413439960,-151.0,0.0001699,2]
[392381566,1761413439971,-151.0,0.0001699,2]
[392381567,1761413439981,-151.0,0.0001699,2]
[392381568,1761413439991,-151.0,0.0001699,2]
[392381569,1761413440001,-198.0,0.00017,2]
[392381570,1761413440011,-151.0,0.00017,2]
[392381571,1761413440020,-20019.19115429,0.00017,2]
[392381572,1761413440030,-196.0,0.0001705,2]
[392381573,1761413440039,-500.0,0.00017059,2]
[392381574,1761413440049,-877.73,0.00017059,2]
[392381575,1761413440103,-500.0,0.00017059,2]
[392381576,1761413440112,-653.73,0.00017059,2]
[392381577,1761413440122,-500.0,0.00017059,2]
[392381578,1761413440131,-500.0,0.00017059,2]
[392381579,1761413440140,-1441.35,0.00017059,2]
[392381580,1761413440150,-593.38,0.00017059,2]
[392381581,1761413440159,-500.0,0.00017059,2]
[392381582,1761413440169,-866.91,0.00017059,2]
[392381584,1761413440178,-689.63,0.00017059,2]
[392381586,1761413440187,-954.22,0.00017059,2]
[392381587,1761413440197,-500.0,0.00017059,2]
[392381588,1761413440207,-1430.75,0.00017059,2]
[392381589,1761413440215,-2197.58,0.00017059,2]
[392381590,1761413440225,-500.0,0.00017059,2]
[392381592,1761413440234,-500.0,0.00017059,2]
[392381593,1761413440244,-612.79,0.00017059,2]
[392381594,1761413440253,-875.14,0.00017059,2]
[392381595,1761413440262,-527.71920407,0.00017059,2]
[392381596,1761413440270,-500.0,0.00017059,2]
[392381597,1761413440279,-1530.93,0.00017059,2]
[392381598,1761413440290,-500.0,0.00017059,2]
[392381599,1761413440299,-1546.66,0.00017059,2]
[392381600,1761413440308,-1182.41,0.00017059,2]
[392381601,1761413440317,-1447.76,0.00017059,2]
[392381602,1761413440326,-1423.59,0.00017059,2]
[392381603,1761413440336,-797.14,0.00017059,2]
[392381604,1761413440345,-1712.02,0.00017059,2]
[392381605,1761413440354,-1997.28,0.00017059,2]
[392381606,1761413440364,-1155.83,0.00017059,2]
[392381607,1761413440374,-500.0,0.00017059,2]
[392381608,1761413440385,-1369.97,0.00017059,2]
[392381609,1761413440394,-500.0,0.00017061,2]
[392381610,1761413440403,-1240.4,0.00017061,2]
[392381611,1761413440413,-857.39,0.00017061,2]
[392381612,1761413440423,-500.0,0.00017061,2]
[392381613,1761413440433,-490.83710561,0.00017061,2]
[392381614,1761413440442,-1157.48,0.00017061,2]
[392381615,1761413440451,-1154.7,0.00017061,2]
[392381616,1761413440459,-2019.82,0.00017061,2]
[392381617,1761413440470,-866.66,0.00017061,2]
[392381618,1761413440478,-528.16,0.00017061,2]
[392381619,1761413440488,-1751.46,0.00017061,2]
[392381620,1761413440497,-2853.22,0.00017061,2]
[392381621,1761413440508,-1051.46,0.00017061,2]
[392381622,1761413440517,-500.0,0.00017062,2]
[392381623,1761413440527,-500.0,0.00017062,2]
[392381624,1761413440537,-1333.22,0.00017062,2]
[392381625,1761413440547,-500.0,0.00017062,2]
[392381626,1761413440558,-739.87,0.00017062,2]
[392381627,1761413440567,-877.09,0.00017062,2]
[392381628,1761413440577,-1762.45,0.00017062,2]
[392381629,1761413440587,-1392.65,0.00017062,2]
[392381630,1761413440597,-303.057,0.00017063,2]
[392381631,1761413440608,-500.0,0.00017064,2]
[392381632,1761413440617,-500.0,0.00017064,2]
[392381633,1761413440627,-400.68952534,0.00017065,2]
[392381634,1761413440637,-366.37733482,0.00017065,2]
[392381635,1761413440646,-418.71695408,0.00017065,2]
[392381636,1761413440657,-654.24524075,0.00017065,2]
[392381637,1761413440666,-941.17103353,0.00017065,2]
[392381638,1761413440676,-173.46970644,0.00017065,2]
[392381639,1761413440685,-312.24547158,0.00017065,2]
[392381640,1761413440694,-555.10306059,0.00017065,2]
[392381641,1761413440703,-867.34853218,0.00017065,2]
[392381642,1761413440712,-1247.73290445,0.00017065,2]
[392381643,1761413440722,-341.18943328,0.00017065,2]
[392381644,1761413440732,-154.7927577,0.00017094,2]
[392381645,1761413440741,-151.0,0.000171,2]
[392381646,1761413440751,-151.0,0.000171,2]
[392381647,1761413440760,-151.0,0.000171,2]
[392381648,1761413440769,-600.0,0.0001712,2]
[392381649,1761413440778,-300.0,0.0001712,2]
[392381650,1761413440788,-300.0,0.0001712,2]
[392381651,1761413440797,-300.0,0.0001712,2]
[392381652,1761413440806,-300.0,0.0001712,2]
[392381653,1761413440815,-300.0,0.0001712,2]
[392381654,1761413440824,-300.0,0.0001712,2]
[392381655,1761413440833,-300.0,0.0001712,2]
[392381656,1761413440842,-300.0,0.0001712,2]
[392381657,1761413440851,-300.0,0.0001712,2]
[392381658,1761413440861,-300.0,0.0001712,2]
[392381659,1761413440870,-300.0,0.0001712,2]
[392381660,1761413440879,-300.0,0.0001712,2]
[392381661,1761413440889,-300.0,0.0001712,2]
[392381662,1761413440899,-300.0,0.0001712,2]
[392381663,1761413440908,-300.0,0.0001712,2]
[392381664,1761413440918,-325.0,0.00017149,2]
[392381665,1761413440927,-500.0,0.00017173,2]
[392381666,1761413440937,-151.0,0.00017173,2]
[392381667,1761413440946,-248.5364902,0.00017173,2]
[392381668,1761413440956,-151.0,0.00017173,2]
[392381669,1761413440965,-151.0,0.00017173,2]
[392381670,1761413440974,-151.0,0.00017173,2]
[392381671,1761413440984,-152.62207906,0.00017173,2]
[392381672,1761413440993,-151.0,0.00017173,2]
[392381673,1761413441002,-175.19491594,0.00017173,2]
[392381674,1761413441011,-151.0,0.000172,2]
[392381675,1761413441022,-196.0,0.00017225,2]
[392381676,1761413441031,-500.0,0.00017228,2]
[392381677,1761413441040,-151.0,0.00017228,2]
[392381678,1761413441050,-152.12236401,0.00017228,2]
[392381679,1761413441060,-151.0,0.00017228,2]
[392381680,1761413441069,-202.31708279,0.00017237,2]
[392381681,1761413441078,-200.73278272,0.00017237,2]
[392381682,1761413441089,-201.34513587,0.00017237,2]
[392381683,1761413441099,-500.0,0.00017238,2]
[392381684,1761413441108,-409.84523693,0.00017238,2]
[392381685,1761413441118,-500.0,0.00017238,2]
[392381686,1761413441127,-500.0,0.00017238,2]
[392381687,1761413441136,-500.0,0.00017238,2]
[392381688,1761413441146,-1223.32,0.00017238,2]
[392381689,1761413441156,-567.87578448,0.00017238,2]
[392381690,1761413441166,-500.0,0.00017238,2]
[392381691,1761413441175,-500.0,0.00017238,2]
[392381692,1761413441184,-500.0,0.00017238,2]
[392381693,1761413441194,-500.0,0.00017238,2]
[392381694,1761413441203,-500.0,0.00017238,2]
[392381695,1761413441212,-503.83256306,0.00017238,2]
[392381696,1761413441221,-500.0,0.00017238,2]
[392381697,1761413441231,-500.0,0.00017238,2]
[392381698,1761413441240,-500.0,0.00017238,2]
[392381699,1761413441251,-500.0,0.00017238,2]
[392381700,1761413441260,-437.18609312,0.00017238,2]
[392381701,1761413441270,-500.0,0.00017238,2]
[392381702,1761413441278,-500.0,0.00017238,2]
[392381703,1761413441288,-500.0,0.00017238,2]
[392381704,1761413441298,-574.57324801,0.00017238,2]
[392381705,1761413441308,-500.0,0.00017238,2]
[392381706,1761413441317,-500.0,0.00017238,2]
[392381707,1761413441327,-500.0,0.00017238,2]
[392381708,1761413441336,-500.0,0.00017238,2]
[392381709,1761413441347,-500.0,0.00017238,2]
[392381710,1761413441356,-537.28942856,0.00017238,2]
[392381711,1761413441365,-500.0,0.00017238,2]
[392381712,1761413441375,-464.13072293,0.00017238,2]
[392381713,1761413441384,-542.8,0.00017238,2]
[392381714,1761413441393,-509.15,0.00017238,2]
[392381715,1761413441404,-500.0,0.00017238,2]
[392381716,1761413441413,-1677.52,0.00017238,2]
[392381717,1761413441423,-500.0,0.00017238,2]
[392381718,1761413441432,-500.0,0.00017238,2]
[392381719,1761413441442,-500.0,0.00017238,2]
[392381720,1761413441452,-500.0,0.00017238,2]
[392381721,1761413441462,-500.0,0.00017238,2]
[392381722,1761413441471,-500.0,0.00017238,2]
[392381723,1761413441481,-500.0,0.00017238,2]
[392381724,1761413441491,-419.36698132,0.00017238,2]
[392381726,1761413442400,-576.74348318,0.00016788,2]
[392381727,1761413442409,-452.56078701,0.00016964,2]
[392381728,1761413442418,-500.0,0.00016964,2]
[392381729,1761413442427,-210.95034851,0.00017065,2]
[392381730,1761413442436,-151.0,0.00017173,2]
[392381731,1761413442445,-151.0,0.00017228,2]
[392381732,1761413442454,-80.63301868,0.00017238,2]
[392381733,1761413442463,-310.41925037,0.00017238,2]
[392381734,1761413442491,-189.58074963,0.00017238,2]
[392381735,1761413442501,-500.0,0.00017238,2]
[392381736,1761413442510,-500.0,0.00017238,2]
[392381737,1761413442518,-500.0,0.00017238,2]
[392381738,1761413442527,-521.53062932,0.00017238,2]
[392381739,1761413442536,-470.72960681,0.00017238,2]
[392381740,1761413442579,500.0,0.00016784,2]
[392381743,1761413442630,1706.2,0.00016785,2]
[392381744,1761413442770,-278.475,0.00017058,2]
[392381745,1761413442781,-221.525,0.00017058,2]
[392381746,1761413442790,-1706.2,0.00017059,2]
[392381747,1761413442799,-203.4246092,0.00017173,2]
[392381748,1761413442808,-29.27039319,0.00017238,2]
[392381749,1761413442817,-500.0,0.00017238,2]
[392381750,1761413442826,-500.0,0.00017238,2]
[392381751,1761413442836,-500.0,0.00017238,2]
[392381752,1761413442845,-500.0,0.00017238,2]
[392381753,1761413442854,-500.0,0.00017238,2]
[392381754,1761413442863,-500.0,0.00017238,2]
[392381755,1761413442874,-500.0,0.00017238,2]
[392381756,1761413442883,-35.43416895,0.00017238,2]
[392381757,1761413442904,-500.0,0.00017173,2]
[392381758,1761413442913,-464.56583105,0.00017238,2]
[392381759,1761413442923,-500.0,0.00017238,2]
[392381760,1761413442932,-500.0,0.00017238,2]
[392381761,1761413442941,-500.0,0.00017238,2]
[392381762,1761413442950,-500.0,0.00017238,2]
[392381763,1761413442960,-500.0,0.00017238,2]
[392381764,1761413442969,-503.97662685,0.00017238,2]
[392381765,1761413442978,-500.0,0.00017238,2]
[392381766,1761413442986,-500.0,0.00017238,2]
[392381767,1761413442995,-500.0,0.00017238,2]
[392381768,1761413443004,-500.0,0.00017238,2]
[392381769,1761413443013,-1688.89,0.00017238,2]
[392381770,1761413443022,-528.10753448,0.00017238,2]
[392381771,1761413443032,-500.0,0.00017238,2]
[392381772,1761413443041,-507.95484286,0.00017238,2]
[392381773,1761413443050,-600.62461411,0.00017238,2]
[392381774,1761413443059,-500.0,0.00017238,2]
[392381775,1761413443068,-500.0,0.00017238,2]
[392381776,1761413443081,-503.18685468,0.00017238,2]
[392381777,1761413443090,-500.0,0.00017238,2]
[392381778,1761413443099,-500.0,0.00017238,2]
[392381779,1761413443108,-549.3,0.00017238,2]
[392381780,1761413443120,-500.0,0.00017238,2]
[392381781,1761413443129,-500.0,0.00017238,2]
[392381782,1761413443139,-500.0,0.00017238,2]
[392381783,1761413443148,-95.55204548,0.00017238,2]
[392381784,1761413443730,-3e-08,0.00017238,2]
[392381785,1761413443745,-404.44795449,0.00017238,2]
[392381786,1761413443755,-870.19,0.00017238,2]
[392381787,1761413443764,-575.72,0.00017238,2]
[392381788,1761413443773,-500.0,0.00017238,2]
[392381789,1761413443783,-500.0,0.00017238,2]
[392381790,1761413443793,-500.0,0.00017238,2]
[392381791,1761413443802,-513.8,0.00017238,2]
[392381792,1761413443811,-572.01,0.00017238,2]
[392381793,1761413443820,-500.0,0.00017238,2]
[392381794,1761413443830,-500.0,0.00017238,2]
[392381795,1761413443839,-500.0,0.00017238,2]
[392381796,1761413443848,-500.0,0.00017238,2]
[392381797,1761413443858,-500.0,0.00017238,2]
[392381798,1761413443868,-510.4,0.00017238,2]
[392381799,1761413443877,-500.0,0.00017238,2]
[392381800,1761413443886,-500.0,0.00017238,2]
[392381801,1761413443895,-1018.67,0.00017238,2]
[392381802,1761413443904,-500.0,0.00017238,2]
[392381803,1761413443913,-500.0,0.00017238,2]
[392381804,1761413443922,-220.11209421,0.00017238,2]
[392381805,1761413443932,-500.0,0.00017238,2]
[392381806,1761413443943,-500.0,0.00017238,2]
[392381807,1761413443953,-517.40970912,0.00017238,2]
[392381808,1761413443963,-500.0,0.00017238,2]
[392381809,1761413443974,-500.0,0.00017238,2]
[392381810,1761413443983,-1760.39,0.00017238,2]
[392381811,1761413443992,-500.0,0.00017238,2]
[392381812,1761413444001,-500.0,0.00017238,2]
[392381813,1761413444010,-500.0,0.00017238,2]
[392381814,1761413444020,-1901.3,0.00017238,2]
[392381815,1761413444029,-608.21954418,0.00017238,2]
[392381816,1761413444039,-531.94,0.00017238,2]
[392381817,1761413444050,-500.0,0.00017238,2]
[392381818,1761413444059,-240.00366233,0.00017238,2]
[392381819,1761413444196,5000.0,0.00016787,2]
[392381876,1761413446439,500.0,0.00016785,2]
[392381877,1761413451987,500.0,0.00016784,2]
[392381878,1761413452502,849.05,0.00016785,2]
[392381879,1761413452569,165.2206338,0.00016786,2]
[392381880,1761413454343,500.0,0.00016786,2]
[392381881,1761413454715,279.5393662,0.00016785,2]
[392381882,1761413454742,1264.4006338,0.00016785,2]
[392381883,1761413457377,500.0,0.00016784,2]
[392381884,1761413457455,8235.6093662,0.0001669,2]
[392381885,1761413457481,10000.01,0.0001669,2]
[392381886,1761413464389,157.67,0.00017699,30]
[392381887,1761413464869,315.34,0.00019307,30]
[392381888,1761413466200,-968.56214828,0.00016523,2]
[392381889,1761413466398,-1937.12429656,0.00016523,2]
[392381890,1761413469320,-3874.24859312,0.00016523,2]
[392381891,1761413469421,-2251.51281376,0.00016523,2]
[392381892,1761413469452,-300.0,0.00016689,2]
[392381893,1761413476293,-8492.62290129,0.0001669,2]
[392381894,1761413476404,-10000.01,0.0001669,2]
[392381895,1761413476517,-10000.01,0.0001669,2]
[392381896,1761413476629,-10000.01,0.0001669,2]
[392381897,1761413476733,-10000.01,0.0001669,2]
[392381898,1761413478256,-10000.01,0.0001669,2]
[392381899,1761413478436,-10000.01,0.0001669,2]
[392381900,1761413478770,-10000.01,0.0001669,2]
[392381901,1761413478897,-10000.01,0.0001669,2]
[392381902,1761413479025,-10000.01,0.0001669,2]
[392381903,1761413481714,-10000.01,0.0001669,2]
[392381904,1761413481811,-10000.01,0.0001669,2]
[392381905,1761413481942,-10000.01,0.0001669,2]
[392381906,1761413482078,-10000.01,0.0001669,2]
[392381907,1761413486124,-10000.01,0.0001669,2]
[392381908,1761413486906,-10000.01,0.0001669,2]
[392381909,1761413486935,-10000.01,0.0001669,2]
[392381910,1761413486961,-10000.01,0.0001669,2]
[392381911,1761413487002,-10000.01,0.0001669,2]
[392381912,1761413487042,-10000.01,0.0001669,2]
[392381913,1761413490364,-202.79659382,0.00016523,2]
[392381914,1761413490416,-9594.41681236,0.0001669,2]
[392381915,1761413490500,-10000.01,0.0001669,2]
[392381916,1761413490624,-10000.01,0.0001669,2]
[392381917,1761413490785,-10000.01,0.0001669,2]
[392381918,1761413496359,-10000.01,0.0001669,2]
[392381919,1761413496475,-10000.01,0.0001669,2]
[392381920,1761413496582,-10000.01,0.0001669,2]
[392381921,1761413496818,-10000.01,0.0001669,2]
[392381922,1761413496914,-10000.01,0.0001669,2]
[392381923,1761413499516,-10000.01,0.0001669,2]
[392381924,1761413499832,-10000.01,0.0001669,2]
[392381925,1761413499985,-10000.01,0.0001669,2]
[392381926,1761413500139,-10000.01,0.0001669,2]
[392381927,1761413500307,-10000.01,0.0001669,2]
[392381928,1761413502495,-10000.01,0.0001669,2]
[392381929,1761413502648,-3677.01092015,0.0001669,2]
[392381930,1761413505076,505.35646619,0.00030136,120]
[392381931,1761413511439,196.0,0.00016,2]
[392381932,1761413511729,196.0,0.0001614,2]
[392381933,1761413512037,196.0,0.0001628,2]
[392381934,1761413512338,196.0,0.0001642,2]
[392381935,1761413512643,196.0,0.0001656,2]
[392381936,1761413514347,177.964117,0.00015869,2]
[392381937,1761413541468,10000.01,0.00015936,2]
[392381938,1761413541490,10000.01,0.00015936,2]
[392381939,1761413541513,10000.01,0.00015936,2]
[392381940,1761413543701,155.09,0.00012376,30]
[392381941,1761413544106,310.18,0.00013501,30]
[392381942,1761413544500,465.27,0.00014626,30]
[392381943,1761413545154,620.36,0.00015751,30]
[392381944,1761413545640,775.45,0.00016876,30]
[392381945,1761413545708,482.74,0.0001698,3]
[392381946,1761413545842,-213.32495896,0.00015936,2]
[392381947,1761413545904,930.53,0.00018001,30]
[392381948,1761413545936,-8842.045883,0.00015936,2]
[392381949,1761413545991,-3914.88302646,0.00015936,2]
[392381950,1761413546046,-2170.24394708,0.00015936,2]
[392381951,1761413546207,1085.62,0.00019126,30]
[392381952,1761413571632,536.098589,0.00018,3]
[392381953,1761413572426,859.75149822,0.000166,2]
[392381954,1761413585060,433.0,0.00016638,2]
[392381955,1761413596982,1141.60572575,0.00016686,2]
[392381956,1761413614681,323.682259,0.00018,3]
[392381957,1761413628114,7565.65277603,0.00016689,2]
[392381958,1761413628137,10000.01,0.00016689,2]
[392381959,1761413628162,10000.01,0.00016689,2]
[392381960,1761413628184,10000.01,0.00016689,2]
[392381961,1761413628206,10000.01,0.00016689,2]
[392381962,1761413628227,10000.01,0.00016689,2]
[392381963,1761413628247,10000.01,0.00016689,2]
[392381964,1761413628267,10000.01,0.00016689,2]
[392381965,1761413628288,10000.01,0.00016689,2]
[392381966,1761413628308,10000.01,0.00016689,2]
[392381967,1761413641089,-196.0,0.00016,2]
[392381968,1761413641112,-80.25110675,0.0001615,2]
[392381969,1761413657513,-115.74889325,0.0001615,2]
[392381970,1761413657542,-88.83476812,0.000163,2]
[392381971,1761413661891,181.56556913,0.0001615,2]
[392381972,1761413671432,-107.16523188,0.000163,2]
[392381973,1761413713887,165.26060903,0.000161,2]
[392381974,1761413752893,196.0,0.00016,2]
[392381975,1761413753206,196.0,0.00016162,2]
[392381976,1761413753502,196.0,0.00016323,2]
[392381977,1761413762136,-196.0,0.00016485,2]
[392381978,1761413768516,150.0,0.00017002,30]
[392381979,1761413768953,265.16,0.00018547,30]
[392381980,1761413769401,397.74,0.00020093,30]
[392381981,1761413787655,998.90501004,0.00016588,2]
[392381982,1761413807906,2484.665909,0.00015673,2]
[392381983,1761413848020,150.0,0.00016926,30]
[392381984,1761413848466,256.29,0.00018464,30]
[392381985,1761413848868,384.44,0.00020003,30]
[392381986,1761413851820,6516.43908096,0.00016557,2]
[392381987,1761413851842,6645.04604767,0.00016557,2]
[392381988,1761413853775,3354.96395233,0.00016568,2]
[392381989,1761413853798,9806.52117626,0.00016568,2]
[392381990,1761413855775,193.48882374,0.00016579,2]
[392381991,1761413855796,10000.01,0.00016579,2]
[392381992,1761413855818,2967.98630485,0.00016579,2]
[392381993,1761413857789,7032.02369515,0.00016589,2]
[392381994,1761413857812,6129.46143344,0.00016589,2]
[392381995,1761413859820,3870.54856656,0.000166,2]
[392381996,1761413859842,9290.93656203,0.000166,2]
[392381997,1761413867107,709.07343797,0.00015673,2]
[392381998,1761413867127,674.20001593,0.00015673,2]
[392381999,1761413872735,196.0,0.00016,2]
[392382000,1761413873022,196.0,0.00016191,2]
[392382001,1761413873312,196.0,0.00016382,2]
[392382002,1761413874131,196.0,0.00016573,2]
[392382003,1761413876991,-300.0,0.00016656,2]
[392382004,1761413877024,-300.0,0.00016656,2]
[392382005,1761413877052,-1200.0,0.00016656,2]
[392382006,1761413880821,301.14,0.00015225,2]
[392382007,1761413882939,300.0,0.00016656,2]
[392382008,1761413885464,2394.67844641,0.00016656,2]
[392382009,1761413898886,-4657.99153766,0.00016657,2]
[392382010,1761413899058,-10000.01,0.00016657,2]
[392382011,1761413899373,-10000.01,0.00016657,2]
[392382012,1761413901209,-10000.01,0.00016657,2]
[392382013,1761413901438,-10000.01,0.00016657,2]
[392382014,1761413901563,-4658.04153766,0.00016657,2]
[392382015,1761413901589,-683.92692468,0.00016657,2]
[392382016,1761413901710,-500.0,0.00016657,2]
[392382017,1761413908157,1219.51938926,0.00016657,2]
[392382018,1761413912824,500.0,0.00016656,2]
[392382019,1761413912858,349.35020679,0.00016656,2]
[392382020,1761413912899,369.35499209,0.00016656,2]
[392382021,1761413914041,500.0,0.00016656,2]
[392382022,1761413914069,500.0,0.00016656,2]
[392382023,1761413914097,770.33072297,0.00016656,2]